bitfinex/quotes_ETHUSD_20250908
["timestamp","ask_amount","ask_price","bid_price","bid_amount"]
[1757325918173,4.09120666,4324.9,4324.1,3.24287803]
[1757325918468,3.865,4324.8,4324.2,0.9303]
[1757325918656,1.779,4324.9,4324.3,0.9303]
[1757325918859,3.864,4324.8,4324.4,0.9303]
[1757325919078,3.864,4324.8,4324.7,0.3053]
[1757325919368,3.864,4324.8,4324.7,1.2356]
[1757325919567,0.001,4324.9,4324.7,1.2356]
[1757325919770,0.001,4324.9,4324.7,0.3053]
[1757325920082,3.865,4324.9,4324.8,0.9303]
[1757325920271,3.865,4324.9,4324.8,1.2356]
[1757325923057,0.001,4324.9,4324.8,1.2356]
[1757325931305,0.001,4324.9,4324.8,3.54784565]
[1757325931914,0.001,4324.9,4324.8,1.2356]
[1757325932276,0.001,4324.9,4324.8,3.54784565]
[1757325932546,0.0002,4324.9,4324.8,1.2356]
[1757325933611,0.0002,4324.9,4324.8,3.54784565]
[1757325933808,0.0002,4324.9,4324.8,1.2356]
[1757325934110,0.0002,4324.9,4324.8,3.54784565]
[1757325934405,0.0002,4324.9,4324.8,1.2356]
[1757325935300,0.0002,4324.9,4324.8,3.54784565]
[1757325936382,0.0002,4324.9,4324.8,1.2356]
[1757325937201,0.0002,4324.9,4324.8,3.863]
[1757325937479,0.3126,4324.9,4324.6,3.863]
[1757325937915,0.3126,4324.9,4324.8,0.2884]
[1757325937916,0.0002,4324.9,4324.8,0.2884]
[1757325938790,0.0002,4324.9,4324.8,1.1965]
[1757325940032,0.0002,4324.9,4324.8,9.79272027]
[1757325941122,0.0002,4324.9,4324.8,7.48047462]
[1757325941298,0.0002,4324.9,4324.8,9.79272027]
[1757325942025,0.0002,4324.9,4324.8,7.48047462]
[1757325942591,0.0002,4324.9,4324.8,9.79272027]
[1757325942991,0.0002,4324.9,4324.8,13.65572027]
[1757325947542,0.0002,4324.9,4324.8,13.65572027]
[1757325949091,0.0002,4324.9,4324.8,13.20292027]
[1757325950437,0.0002,4324.9,4324.8,6.57784565]
[1757325950936,0.0002,4324.9,4324.8,3.9772]
[1757325950937,0.3126,4324.9,4324.8,3.9772]
[1757325951139,0.3126,4324.9,4324.8,6.28944565]
[1757325951308,0.0002,4324.9,4324.8,6.28944565]
[1757325951716,0.0002,4324.9,4324.8,3.9772]
[1757325951901,0.3126,4324.9,4324.8,3.9772]
[1757325952803,0.3126,4324.9,4324.8,6.28944565]
[1757325953511,0.0002,4324.9,4324.8,6.28944565]
[1757325953718,0.0002,4324.9,4324.8,7.50284565]
[1757325954338,0.0002,4324.9,4324.8,7.04924565]
[1757325956043,0.0002,4324.9,4324.8,7.50284565]
[1757325957947,0.0004,4325.0,4324.9,2.31219218]
[1757325958145,0.0004,4325.0,4324.9,8.4809668]
[1757325958445,0.0004,4325.0,4324.9,3.07199218]
[1757325958619,0.0004,4325.0,4324.9,9.2407668]
[1757325958829,0.3001,4325.0,4324.8,0.1152]
[1757325959037,0.3001,4325.0,4324.9,3.862]
[1757325959416,0.0004,4325.0,4324.9,3.862]
[1757325960449,0.3001,4325.0,4324.8,0.1172]
[1757325960648,0.0004,4325.0,4324.9,4.1655]
[1757325960955,0.0004,4325.0,4324.9,4.6218]
[1757325961256,0.0004,4325.0,4324.9,11.26729654]
[1757325961559,0.0004,4325.0,4324.9,11.24417462]
[1757325961852,0.0004,4325.0,4324.9,13.5563668]
[1757325962611,0.0004,4325.0,4324.9,0.3035]
[1757325962716,0.0004,4325.0,4324.9,3.861]
[1757325963658,0.0004,4325.0,4324.9,6.93299218]
[1757325964158,0.0004,4325.0,4324.9,7.38659218]
[1757325964955,0.0004,4325.0,4324.9,5.0744]
[1757325965320,0.0004,4325.0,4324.9,4.6208]
[1757325965524,0.0004,4325.0,4324.9,6.47669218]
[1757325965924,0.0004,4325.0,4324.9,6.93299218]
[1757325966169,0.0004,4325.0,4324.9,7.38659218]
[1757325966664,0.0004,4325.0,4324.9,13.5553668]
[1757325967025,0.0004,4325.0,4324.9,16.5553668]
[1757325967229,0.0004,4325.0,4324.9,10.38659218]
[1757325968980,0.0004,4325.0,4324.9,11.29379218]
[1757325969572,0.0004,4325.0,4324.9,18.5730905]
[1757325969777,0.0004,4325.0,4324.9,18.66566327]
[1757325974688,0.001,4325.4,4325.0,3.792]
[1757325974891,0.001,4325.4,4325.3,11.07129832]
[1757325975047,0.001,4325.4,4325.3,17.54777667]
[1757325975242,0.001,4325.4,4325.3,18.57287667]
[1757325976169,0.001,4325.4,4325.3,16.37542638]
[1757325976343,0.001,4325.4,4325.3,18.57287667]
[1757325977143,0.0252,4325.8,4325.7,2.31176456]
[1757325977348,0.0252,4325.8,4325.7,18.36738052]
[1757325977577,0.0252,4325.8,4325.7,19.55766288]
[1757325977773,0.0252,4325.8,4325.7,20.34966288]
[1757325978585,0.02,4326.9,4326.7,2.31123026]
[1757325978785,0.02,4326.9,4326.7,19.01952858]
[1757325979082,0.02,4326.9,4326.7,19.43822858]
[1757325979243,1e-08,4326.8,4326.7,20.42283597]
[1757325979445,1e-08,4326.8,4326.7,15.65193597]
[1757325979768,0.29970001,4326.8,4326.7,11.92913765]
[1757325980278,1e-08,4326.8,4326.7,8.06913765]
[1757325980479,1e-08,4326.8,4326.7,11.92913765]
[1757325980869,0.18990739,4327.4,4326.8,3.792]
[1757325981077,0.18990739,4327.4,4327.2,3.792]
[1757325981249,0.18990739,4327.4,4327.3,9.9769098]
[1757325981686,0.48960739,4327.4,4327.3,9.9769098]
[1757325982081,0.48960739,4327.4,4327.3,5.3109098]
[1757325982387,0.38960739,4327.4,4327.3,9.1849098]
[1757325982794,0.08990739,4327.4,4327.3,9.4884098]
[1757325983276,0.38880739,4327.4,4327.3,9.1849098]
[1757325984714,1.32060739,4327.4,4327.3,9.1839098]
[1757325984914,1.32060739,4327.4,4327.3,5.3109098]
[1757325985221,0.87070739,4327.4,4327.3,9.1839098]
[1757325985424,1.32060739,4327.4,4327.3,9.1839098]
[1757325985925,1.32060739,4327.4,4327.3,3.873]
[1757325986095,1.32060739,4327.4,4327.3,6.1839098]
[1757325987592,1.32060739,4327.4,4327.3,3.873]
[1757325987792,1.32060739,4327.4,4327.3,3.84487848]
[1757325988965,1.32060739,4327.4,4327.1,2.3110037]
[1757325989236,0.9318,4327.3,4327.2,3.871]
[1757325989533,1.2421,4327.3,4327.2,3.871]
[1757325989857,0.92532074,4327.3,4327.2,0.1152]
[1757325990140,1.37522074,4327.3,4327.1,3.872]
[1757325990334,0.4819,4327.2,4327.1,3.872]
[1757325990536,0.08910739,4327.4,4327.3,2.3109098]
[1757325990722,0.08910739,4327.4,4327.3,6.1829098]
[1757325990923,0.08910739,4327.4,4327.3,6.4820098]
[1757325991241,0.08910739,4327.4,4327.3,6.9500098]
[1757325991616,0.08910739,4327.4,4327.3,7.4014098]
[1757325992538,0.08910739,4327.4,4327.3,18.47270812]
[1757325993714,0.39940739,4327.4,4327.3,5.3109098]
[1757325994057,0.39940739,4327.4,4327.3,9.1839098]
[1757325994256,0.08910739,4327.4,4327.3,7.1721]
[1757325994554,0.08910739,4327.4,4327.3,9.9510098]
[1757325994853,0.08910739,4327.4,4327.3,9.4830098]
[1757325995749,0.08910739,4327.4,4327.3,9.1839098]
[1757325995924,0.39940739,4327.4,4327.3,9.1839098]
[1757325996546,0.08910739,4327.4,4327.3,9.4830098]
[1757325996953,0.08910739,4327.4,4327.3,10.4024098]
[1757325997255,0.08910739,4327.4,4327.3,11.1944098]
[1757325997658,0.08910739,4327.4,4327.3,9.4820098]
[1757325997864,0.09010739,4327.4,4327.3,9.4820098]
[1757325998023,0.09010739,4327.4,4327.3,9.9500098]
[1757325998959,0.09010739,4327.4,4327.3,9.1829098]
[1757325999154,0.40040739,4327.4,4327.3,5.3109098]
[1757325999364,0.40040739,4327.4,4327.3,9.1829098]
[1757326000282,0.09010739,4327.4,4327.3,9.1829098]
[1757326000626,0.09010739,4327.4,4327.3,9.4820098]
[1757326000831,0.09010739,4327.4,4327.3,10.4014098]
[1757326001063,0.09010739,4327.4,4327.3,11.1934098]
[1757326001869,0.88799999,4327.9,4327.8,0.792]
[1757326002037,0.025,4328.8,4328.7,9.58946072]
[1757326002233,0.025,4328.8,4328.7,18.54856072]
[1757326002458,0.025,4328.8,4328.7,19.58316072]
[1757326002865,0.025,4328.8,4328.7,19.58166072]
[1757326003241,0.025,4328.8,4328.7,20.03306072]
[1757326004470,0.025,4328.8,4328.7,11.8343624]
[1757326004668,0.3353,4328.8,4328.7,11.5352624]
[1757326005265,0.3353,4328.8,4328.7,7.6512624]
[1757326005469,1.2671,4328.8,4328.7,4.8912]
[1757326005672,1.2671,4328.8,4328.7,8.7732]
[1757326005836,0.3353,4328.8,4328.7,11.0833624]
[1757326006036,1.2671,4328.8,4328.7,8.7732]
[1757326006858,1.2671,4328.8,4328.7,11.0833624]
[1757326007060,1.2671,4328.8,4328.7,5.7732]
[1757326007471,1.2671,4328.8,4328.7,5.7742]
[1757326008255,1.2671,4328.8,4328.7,0.1152]
[1757326008587,1.2671,4328.8,4328.7,3.883]
[1757326008588,1.39301,4328.8,4328.7,3.883]
[1757326010203,1.39301,4328.8,4328.4,0.1152]
[1757326010407,2.31031104,4328.5,4328.3,3.882]
[1757326010560,0.5413311,4328.4,4328.3,3.882]
[1757326010763,1.4731311,4328.4,4327.9,0.1152]
[1757326011077,2.31047653,4328.2,4328.0,3.883]
[1757326011282,3.55259172,4328.1,4327.5,0.1152]
[1757326011500,3.55259172,4328.1,4326.8,3.493]
[1757326011501,1.2421,4328.1,4326.8,0.025]
[1757326011688,0.1152,4327.7,4327.0,0.80919062]
[1757326011855,0.3103,4327.1,4327.0,0.80919062]
[1757326012063,1.2421,4327.1,4327.0,3.884]
[1757326012607,1.2421,4327.1,4326.8,0.025]
[1757326012768,0.7922,4327.1,4327.0,3.884]
[1757326013709,0.3103,4327.1,4327.0,3.884]
[1757326014187,0.3103,4327.1,4326.8,0.025]
[1757326014388,0.3103,4327.1,4326.8,3.909]
[1757326017406,0.3103,4327.1,4326.8,3.911]
[1757326020324,2.31111936,4327.0,4326.8,3.911]
[1757326020489,1.2509,4326.9,4326.8,0.027]
[1757326020688,3.56202343,4326.9,4326.8,0.027]
[1757326020916,6.56202343,4326.9,4326.8,0.027]
[1757326021314,0.1152,4326.9,4326.8,0.027]
[1757326021502,2.42606381,4327.4,4326.8,0.027]
[1757326021700,0.3154,4326.9,4326.8,0.027]
[1757326022101,0.4691,4327.3,4326.8,0.027]
[1757326022423,0.1152,4327.4,4327.1,2.3109699]
[1757326022595,0.1152,4327.7,4327.0,0.1152]
[1757326022791,2.3107592,4327.6,4327.0,4.0002]
[1757326023004,2.42592086,4327.7,4327.0,4.0002]
[1757326023908,2.42592086,4327.7,4327.0,6.31126634]
[1757326024240,2.42592086,4327.7,4327.0,4.0002]
[1757326024436,2.42592086,4327.7,4327.0,6.3112676]
[1757326024935,0.1152,4327.7,4327.0,6.3112676]
[1757326025402,2.42589762,4327.7,4327.0,4.0002]
[1757326025597,0.1152,4327.7,4327.0,6.31125202]
[1757326025852,2.31075007,4327.6,4327.0,4.0002]
[1757326026146,0.1152,4327.7,4327.0,4.0002]
[1757326026352,0.3154,4327.1,4327.0,3.885]
[1757326027220,0.3154,4327.1,4326.8,0.027]
[1757326027426,2.31112343,4326.9,4326.8,0.027]
[1757326027898,3.56202343,4326.9,4326.8,0.027]
[1757326030636,7.44702343,4326.9,4326.8,0.027]
[1757326031539,8.42283722,4326.9,4326.8,0.027]
[1757326031836,8.92283722,4326.9,4326.8,0.027]
[1757326034155,8.45293722,4326.9,4326.8,0.027]
[1757326034753,4.10153722,4326.9,4326.8,0.027]
[1757326035052,7.66813722,4326.9,4326.8,0.3293]
[1757326035262,6.69232343,4326.9,4326.8,0.3293]
[1757326036256,6.69232343,4326.9,4326.8,0.027]
[1757326036636,6.69332343,4326.9,4326.8,0.3293]
[1757326036832,2.81032343,4326.9,4326.8,0.3293]
[1757326037040,0.5,4326.9,4326.8,3.55967685]
[1757326037348,0.5,4326.9,4326.8,3.67487685]
[1757326037535,3.0372,4327.7,4327.0,2.31105731]
[1757326037857,3.0372,4327.7,4327.1,3.23019573]
[1757326038060,3.0372,4327.7,4327.1,0.9192]
[1757326038246,3.0372,4327.7,4326.8,0.6117]
[1757326038448,2.31089842,4327.4,4326.8,0.6117]
[1757326039079,2.31080845,4327.5,4326.8,0.6117]
[1757326039365,3.882,4327.6,4327.3,0.3023]
[1757326039559,6.19280207,4327.6,4326.9,0.4497]
[1757326040080,6.19280207,4327.6,4326.8,0.1422]
[1757326040081,6.16165761,4327.4,4326.8,0.1422]
[1757326040226,2.31095186,4327.3,4326.8,0.1422]
[1757326040670,3.881,4327.3,4326.8,0.6117]
[1757326040841,6.19193162,4327.3,4326.8,0.1422]
[1757326041836,6.19293162,4327.3,4326.9,0.4695]
[1757326042140,6.19293162,4327.3,4326.8,0.1422]
[1757326042347,6.19293162,4327.3,4326.8,0.5919]
[1757326042732,6.19293162,4327.3,4326.8,0.1422]
[1757326042949,2.31110796,4327.0,4326.8,0.1422]
[1757326043152,2.62652343,4326.9,4326.8,0.027]
[1757326043352,2.31112343,4326.9,4326.8,0.027]
[1757326044672,6.19208434,4327.0,4326.8,0.027]
[1757326044999,3.881,4327.0,4326.9,0.31]
[1757326045366,3.88,4327.6,4326.9,1.3282]
[1757326045570,3.88,4327.6,4327.0,0.903]
[1757326045895,0.1152,4327.9,4327.0,0.903]
[1757326046195,5.31010745,4328.9,4327.8,6.47165761]
[1757326046196,0.0252,4328.8,4327.8,6.47165761]
[1757326046393,0.0252,4328.8,4328.0,2.31053604]
[1757326046785,0.0252,4328.8,4328.7,0.31]
[1757326047463,0.0252,4328.8,4328.7,0.7534]
[1757326047683,0.0252,4328.8,4328.7,1.213]
[1757326048699,0.0252,4328.8,4328.7,3.0797624]
[1757326048870,0.0252,4328.8,4328.7,6.5231624]
[1757326050293,0.0252,4328.8,4328.7,7.3151624]
[1757326050697,1e-08,4328.8,4328.7,23.06598721]
[1757326052057,0.0242,4329.8,4329.6,0.792]
[1757326052262,0.0242,4329.8,4329.5,3.0]
[1757326052462,0.0242,4329.8,4329.7,2.30962884]
[1757326052664,0.0242,4329.8,4329.7,5.61962884]
[1757326053071,0.0242,4329.8,4329.7,3.31]
[1757326053267,0.0242,4329.8,4329.7,3.0]
[1757326053806,0.3151,4329.8,4329.7,3.0]
[1757326054168,0.8058,4329.8,4329.4,3.908]
[1757326054371,0.4907,4329.7,4329.0,3.908]
[1757326054614,0.4907,4329.7,4329.0,4.60170658]
[1757326054905,0.2909,4329.1,4329.0,3.907]
[1757326055110,0.2909,4329.1,4328.1,0.4434]
[1757326055307,3.54446008,4329.1,4329.0,0.05]
[1757326055605,3.89890609,4329.1,4329.0,0.05]
[1757326056306,0.2909,4329.1,4329.0,0.05]
[1757326056510,2.30973553,4329.5,4329.0,0.05]
[1757326056711,2.3098881,4329.3,4329.0,0.05]
[1757326056868,2.60084895,4329.1,4329.0,0.05]
[1757326057269,3.54444895,4329.1,4329.0,0.05]
[1757326057490,4.12987865,4329.1,4329.0,0.05]
[1757326057709,8.03887865,4329.1,4329.0,0.05]
[1757326059640,6.99974895,4329.1,4329.0,0.05]
[1757326059842,6.50904895,4329.1,4329.0,0.05]
[1757326060233,7.45264895,4329.1,4329.0,0.05]
[1757326060403,0.36206261,4332.4,4329.0,0.36]
[1757326060604,0.4907,4330.1,4329.0,3.11339821]
[1757326060805,4.3599,4330.3,4329.1,0.05]
[1757326061042,0.0252,4329.8,4329.7,0.31]
[1757326061251,0.0252,4329.8,4329.7,1.213]
[1757326061417,0.0252,4329.8,4329.7,3.52262884]
[1757326061819,0.0252,4329.8,4329.7,8.00819589]
[1757326062019,0.5799006,4331.4,4329.8,6.1015755]
[1757326062223,0.5799006,4331.4,4329.8,8.7795755]
[1757326062434,2.30857346,4331.7,4329.8,9.0895755]
[1757326062747,0.025,4331.8,4329.8,9.0895755]
[1757326062947,2.30862484,4331.6,4329.8,9.0895755]
[1757326063747,0.025,4331.8,4329.8,9.0895755]
[1757326064117,0.025,4331.8,4330.7,2.30909552]
[1757326064416,0.025,4331.8,4330.7,9.23409552]
[1757326064641,0.025,4331.8,4330.7,10.44709552]
[1757326065244,0.4529,4331.5,4330.7,3.0924521]
[1757326065549,0.025,4331.8,4330.7,6.61454762]
[1757326065911,0.025,4331.8,4330.7,7.40654762]
[1757326068372,0.025,4331.8,4330.7,23.15737243]
[1757326068519,0.025,4331.8,4331.7,2.30856245]
[1757326068843,0.025,4331.8,4331.7,11.03164807]
[1757326069064,0.025,4331.8,4331.7,12.22156245]
[1757326069261,0.025,4331.8,4331.7,12.36421903]
[1757326069420,0.025,4331.8,4331.7,13.15621903]
[1757326070148,0.025,4331.8,4331.7,11.90461903]
[1757326070515,0.025,4331.8,4331.7,11.57641903]
[1757326071129,0.025,4331.8,4331.7,7.65141903]
[1757326071333,0.025,4331.8,4331.7,11.57541903]
[1757326071530,0.025,4331.8,4331.7,13.27041903]
[1757326072271,0.025,4331.8,4331.7,13.26841903]
[1757326072974,0.025,4331.8,4331.7,11.57341903]
[1757326073174,0.02,4331.9,4331.8,6.12550916]
[1757326073339,0.02,4331.9,4331.8,7.04170916]
[1757326073540,0.02,4331.9,4331.8,7.35490916]
[1757326075331,1e-08,4331.9,4331.8,7.35490916]
[1757326076925,1e-08,4331.9,4331.8,12.89990916]
[1757326077537,0.00100001,4331.9,4331.8,12.89990916]
[1757326078766,0.00100001,4331.9,4331.8,16.81890916]
[1757326079485,0.00100001,4331.9,4331.8,16.99119934]
[1757326079644,0.00100001,4331.9,4331.8,13.07219934]
[1757326079848,0.00100001,4331.9,4331.8,16.99119934]
[1757326080793,0.00100001,4331.9,4331.8,14.79650916]
[1757326080997,0.00100001,4331.9,4331.8,12.10970916]
[1757326081300,0.00100001,4331.9,4331.8,13.02590916]
[1757326081458,0.00100001,4331.9,4331.8,12.10970916]
[1757326081783,0.00100001,4331.9,4331.8,15.10970916]
[1757326081984,0.00100001,4331.9,4331.8,11.79750916]
[1757326082194,0.30680001,4331.9,4331.8,3.943]
[1757326082492,1.23340001,4331.9,4331.8,3.944]
[1757326082648,1.23340001,4331.9,4331.8,6.944]
[1757326082845,1.23340001,4331.9,4331.8,3.025]
[1757326083150,1.35674001,4331.9,4331.6,3.922]
[1757326083351,3.23510916,4331.8,4331.6,3.922]
[1757326083590,3.23510916,4331.8,4330.9,1.774]
[1757326083591,2.30862127,4331.6,4330.9,1.774]
[1757326083890,0.9266,4331.5,4331.0,3.922]
[1757326084063,2.30855012,4331.8,4331.0,3.922]
[1757326084391,0.3058,4331.1,4331.0,3.922]
[1757326084889,0.3058,4331.1,4331.0,6.922]
[1757326085085,0.305,4331.1,4331.0,6.922]
[1757326085944,0.7814,4331.1,4331.0,3.921]
[1757326086149,3.54049396,4331.1,4330.8,0.025]
[1757326086381,2.61389396,4331.1,4330.9,3.921]
[1757326086587,0.9266,4331.0,4330.9,3.921]
[1757326086808,0.9266,4331.0,4330.9,4.0362]
[1757326087005,1.2324,4331.0,4330.9,4.0362]
[1757326087362,3.54133558,4331.0,4330.9,4.0362]
[1757326087710,1.2324,4331.0,4330.9,4.0362]
[1757326088560,1.2324,4331.0,4330.9,0.1152]
[1757326088784,3.54133558,4331.0,4330.9,0.1152]
[1757326088972,0.00100001,4331.9,4330.9,3.82318988]
[1757326089173,0.00100001,4331.9,4331.1,3.0]
[1757326089372,0.00100001,4331.9,4331.3,3.0]
[1757326089888,0.00100001,4331.9,4331.7,2.30855514]
[1757326090064,0.00100001,4331.9,4331.7,3.923]
[1757326090264,0.3058,4331.8,4331.7,6.23156245]
[1757326090859,0.00100001,4331.9,4331.7,6.23156245]
[1757326090860,0.00100001,4331.9,4331.8,2.30850916]
[1757326091395,0.00100001,4331.9,4331.8,6.05100916]
[1757326091601,0.00100001,4331.9,4331.8,6.53790916]
[1757326093411,0.00100001,4331.9,4331.8,8.31190916]
[1757326098990,0.00100001,4331.9,4331.8,8.42710916]
[1757326102297,0.025,4332.8,4332.1,2.30834929]
[1757326102499,0.025,4332.8,4332.7,2.30802963]
[1757326102699,0.025,4332.8,4332.7,9.33722963]
[1757326103220,0.3308,4332.8,4332.7,9.33722963]
[1757326103834,0.025,4332.8,4332.7,9.64462963]
[1757326105015,0.3141,4332.8,4332.7,9.33722963]
[1757326105332,0.025,4332.8,4332.7,9.64462963]
[1757326105496,0.025,4332.8,4332.7,9.33722963]
[1757326107253,0.3141,4332.8,4332.7,3.1152]
[1757326107415,1.2385,4332.8,4332.7,3.0]
[1757326108020,1.2385,4332.8,4332.7,6.912]
[1757326108398,1.2385,4332.8,4332.7,3.912]
[1757326108795,1.2385,4332.8,4332.1,2.3083339]
[1757326109029,0.9244,4332.7,4332.3,3.0]
[1757326109198,0.9244,4332.6,4332.5,3.0]
[1757326109395,0.9244,4332.6,4332.4,3.911]
[1757326109396,1.2135,4332.6,4332.4,3.911]
[1757326109642,0.9244,4332.5,4332.4,3.911]
[1757326109938,1.2135,4332.5,4332.4,6.21918945]
[1757326110445,1.2127,4332.5,4332.4,3.911]
[1757326112533,1.33647,4332.5,4332.0,3.09899999]
[1757326112748,0.9244,4332.4,4332.1,3.908]
[1757326112914,0.2891,4332.2,4332.0,0.09899999]
[1757326113115,0.9244,4332.1,4332.0,4.00799999]
[1757326113441,0.9244,4332.1,4332.0,0.09899999]
[1757326113442,1.2135,4332.1,4332.0,0.09899999]
[1757326113608,3.52184929,4332.1,4332.0,0.09899999]
[1757326113808,4.10485928,4332.1,4332.0,0.09899999]
[1757326114432,4.00485928,4332.1,4332.0,0.09899999]
[1757326117967,4.79685928,4332.1,4332.0,1e-08]
[1757326118116,8.01233285,4332.1,4332.0,1e-08]
[1757326118316,11.92533285,4332.1,4332.0,1e-08]
[1757326119246,8.01233285,4332.1,4332.0,1e-08]
[1757326119554,11.92533285,4332.1,4332.0,1e-08]
[1757326120364,11.70985928,4332.1,4332.0,1e-08]
[1757326121145,12.0542213,4332.1,4332.0,1e-08]
[1757326121330,11.92508554,4332.1,4332.0,1e-08]
[1757326122249,12.05414032,4332.1,4332.0,1e-08]
[1757326122453,11.92508554,4332.1,4332.0,1e-08]
[1757326122839,12.05406575,4332.1,4332.0,1e-08]
[1757326123049,0.792,4331.5,4331.1,0.002]
[1757326123229,6.10082896,4331.2,4331.1,0.002]
[1757326123437,6.38992896,4331.2,4331.1,0.002]
[1757326123756,3.9072,4331.1,4330.8,1e-08]
[1757326123925,6.10098889,4330.9,4330.8,1e-08]
[1757326124127,6.39008889,4330.9,4330.8,1e-08]
[1757326124328,8.62195134,4330.9,4330.8,1e-08]
[1757326128531,12.53295134,4330.9,4330.8,1e-08]
[1757326129758,8.62195134,4330.9,4330.8,1e-08]
[1757326130071,11.74095134,4330.9,4330.8,1e-08]
[1757326131443,7.82995134,4330.9,4330.8,1e-08]
[1757326131643,11.73995134,4330.9,4330.8,1e-08]
[1757326132560,8.62195134,4330.9,4330.8,1e-08]
[1757326132757,12.53095134,4330.9,4330.8,1e-08]
[1757326133189,2.30936215,4330.2,4330.1,0.02]
[1757326133354,11.76422727,4330.2,4330.1,0.02]
[1757326133558,12.49822727,4330.2,4330.1,0.02]
[1757326134102,12.98782727,4330.2,4330.1,0.02]
[1757326134599,13.77982727,4330.2,4330.1,1e-08]
[1757326134768,13.77882727,4330.2,4330.1,1e-08]
[1757326134972,8.14882727,4330.2,4330.1,1e-08]
[1757326135176,12.06982727,4330.2,4330.1,1e-08]
[1757326135577,13.78282727,4330.2,4330.1,1e-08]
[1757326135892,13.78202727,4330.2,4330.1,1e-08]
[1757326136293,2.30952215,4329.9,4329.8,1e-08]
[1757326136494,9.23152215,4329.9,4329.8,1e-08]
[1757326136794,10.45512215,4329.9,4329.8,1e-08]
[1757326138067,9.53312215,4329.9,4329.8,1e-08]
[1757326138777,5.61212215,4329.9,4329.8,1e-08]
[1757326138976,10.99170749,4329.9,4329.8,1e-08]
[1757326139182,10.99170749,4329.9,4329.1,0.9453]
[1757326139517,10.99170749,4329.9,4329.0,0.05]
[1757326139518,3.0,4329.1,4327.1,0.02]
[1757326139804,2.31058943,4327.9,4327.1,0.02]
[1757326139960,8.03758943,4327.9,4327.1,0.02]
[1757326140166,8.03758943,4327.9,4327.8,0.311]
[1757326140694,4.08558943,4327.9,4327.8,0.311]
[1757326140900,8.03658943,4327.9,4327.8,0.311]
[1757326141306,8.03658943,4327.9,4327.8,0.025]
[1757326141307,12.87275488,4327.9,4327.8,0.025]
[1757326141520,12.81455488,4327.9,4327.8,0.025]
[1757326141925,13.30315488,4327.9,4327.8,1e-08]
[1757326142084,13.5178384,4327.9,4327.8,1e-08]
[1757326142287,13.51782142,4327.9,4327.8,1e-08]
[1757326143315,13.51783035,4327.9,4327.8,1e-08]
[1757326145279,9.13643035,4327.9,4327.8,1e-08]
[1757326145475,13.09443035,4327.9,4327.8,1e-08]
[1757326145707,13.52583035,4327.9,4327.8,1e-08]
[1757326145888,8.64683035,4327.9,4327.8,1e-08]
[1757326146090,13.52383035,4327.9,4327.8,1e-08]
[1757326146853,12.82055488,4327.9,4327.8,1e-08]
[1757326147824,13.31015488,4327.9,4327.8,1e-08]
[1757326148377,13.52479727,4327.9,4327.8,1e-08]
[1757326149234,14.01937605,4327.9,4327.8,1e-08]
[1757326149894,13.52479727,4327.9,4327.8,1e-08]
[1757326150094,14.01946356,4327.9,4327.8,1e-08]
[1757326150290,13.52986356,4327.9,4327.8,1e-08]
[1757326150685,13.09846356,4327.9,4327.8,1e-08]
[1757326151128,12.60379727,4327.9,4327.8,1e-08]
[1757326151330,12.57530722,4327.9,4327.8,0.28600001]
[1757326151617,12.08055488,4327.9,4327.8,0.28600001]
[1757326152511,12.07955488,4327.9,4327.8,0.28600001]
[1757326152719,8.12955488,4327.9,4327.8,0.76400001]
[1757326152883,12.07955488,4327.9,4327.8,1.23130001]
[1757326153501,8.12955488,4327.9,4327.8,1.23130001]
[1757326153704,5.12955488,4327.9,4327.8,1.23130001]
[1757326154020,4.08558943,4327.9,4327.8,1.23130001]
[1757326154224,11.03458943,4327.9,4327.8,1.23130001]
[1757326154592,7.08558943,4327.9,4327.8,1.23330001]
[1757326154790,11.03458943,4327.9,4327.8,1.23330001]
[1757326155014,4.775,4327.9,4327.8,1.23330001]
[1757326155289,11.03358943,4327.9,4327.8,1.23330001]
[1757326157521,7.08558943,4327.9,4327.8,1.23330001]
[1757326157732,11.03258943,4327.9,4327.8,1.23330001]
[1757326158028,11.03258943,4327.9,4327.8,1.22330002]
[1757326158190,8.722,4327.9,4327.8,1.22330002]
[1757326158832,11.03258943,4327.9,4327.8,1.22330002]
[1757326159721,11.03258943,4327.9,4327.8,0.27800002]
[1757326159928,11.02958943,4327.9,4327.8,0.27800002]
[1757326160125,11.02958943,4327.9,4327.8,1.22330002]
[1757326160291,11.02958943,4327.9,4327.8,0.27800002]
[1757326161025,11.02958943,4327.9,4327.8,0.002]
[1757326161026,12.66619844,4327.9,4327.8,0.002]
[1757326161225,12.36279844,4327.9,4327.8,0.288]
[1757326162334,12.36079844,4327.9,4327.8,0.288]
[1757326162633,12.36079844,4327.9,4327.8,0.002]
[1757326164107,12.66339844,4327.9,4327.8,0.002]
[1757326166102,12.87921886,4327.9,4327.8,0.002]
[1757326166503,12.57661886,4327.9,4327.8,0.3087]
[1757326167008,12.57661886,4327.9,4327.8,0.002]
[1757326167540,12.88331886,4327.9,4327.8,0.002]
[1757326168219,13.07463927,4327.9,4327.8,0.3087]
[1757326168614,11.73363026,4327.9,4327.8,0.7488]
[1757326168930,11.23560985,4327.9,4327.8,0.3087]
[1757326169132,0.1152,4328.1,4327.8,1.2264]
[1757326169306,3.937,4328.0,4327.9,0.9177]
[1757326169642,3.937,4328.0,4327.9,1.2244]
[1757326169817,3.937,4328.0,4327.9,3.53498943]
[1757326170845,3.937,4328.0,4327.9,1.2244]
[1757326171018,0.1152,4328.3,4328.0,2.31049027]
[1757326171343,3.935,4328.2,4328.0,3.22821842]
[1757326171639,0.1152,4328.3,4328.1,1.2244]
[1757326171843,0.1152,4328.3,4328.1,3.53488265]
[1757326172028,3.934,4328.2,4328.1,0.3067]
[1757326172230,0.1152,4328.5,4328.1,0.3067]
[1757326172407,3.934,4328.4,4328.1,0.3067]